bitfinex/quotes_SOLUSD_20250107
["timestamp","ask_amount","ask_price","bid_price","bid_amount"]
[1736213468561,8.95686277,218.24,218.18,8.95686277]
[1736213469186,8.95686277,218.25,218.18,8.95686277]
[1736213469589,0.57408913,218.27,218.18,8.95686277]
[1736213469763,8.95686277,218.25,218.18,8.95686277]
[1736213471490,0.57408913,218.29,218.19,8.95686277]
[1736213471674,8.95686277,218.26,218.2,8.95686277]
[1736213472903,20.0,218.29,218.2,8.95686277]
[1736213473086,8.95686277,218.26,218.2,8.95686277]
[1736213473803,8.95686277,218.22,218.16,1.6584]
[1736213473968,8.95686277,218.22,218.17,1.98]
[1736213476095,8.95686277,218.23,218.17,10.93686277]
[1736213476300,8.95686277,218.22,218.17,1.98]
[1736213476788,0.57408913,218.28,218.17,10.93686277]
[1736213476990,8.95686277,218.23,218.17,10.93686277]
[1736213482299,8.95686277,218.23,218.17,1.98]
[1736213482476,8.95686277,218.18,218.15,1.98]
[1736213482676,8.95686277,218.16,218.11,1.5094]
[1736213483013,8.95686277,218.12,218.07,1.98]
[1736213483179,8.95686277,218.12,218.09,20.0]
[1736213483782,8.95686277,218.12,218.08,20.0]
[1736213484593,8.95686277,218.12,218.09,20.0]
[1736213485804,8.95686277,218.1,218.08,1.98]
[1736213487408,8.95686277,218.11,218.08,1.98]
[1736213487983,8.95686277,218.13,218.08,1.98]
[1736213489082,2.20378913,218.19,218.08,1.98]
[1736213489083,8.95686277,218.12,218.08,1.98]
[1736213490211,0.57408913,218.17,218.08,1.98]
[1736213490417,8.95686277,218.13,218.08,1.98]
[1736213490710,8.95686277,218.09,218.05,1.98]
[1736213490894,8.95686277,218.08,218.05,1.98]
[1736213491093,8.95686277,218.09,218.05,1.98]
[1736213491696,8.95686277,218.09,218.05,21.98]
[1736213491890,8.95686277,218.1,218.05,21.98]
[1736213493118,8.95686277,218.1,218.05,1.98]
[1736213493314,8.95686277,218.08,218.05,1.98]
[1736213493533,8.95686277,218.07,218.05,1.98]
[1736213494418,8.95686277,218.06,218.03,20.0]
[1736213495125,8.95686277,218.05,218.03,20.0]
[1736213495723,8.95686277,218.05,218.01,3.6007]
[1736213496494,8.95686277,218.05,218.01,1.6207]
[1736213496697,8.95686277,218.05,218.01,3.6007]
[1736213497111,8.95686277,218.03,217.99,20.0]
[1736213497313,8.95686277,218.02,218.0,1.98]
[1736213498309,8.95686277,218.03,218.0,1.98]
[1736213499023,8.95686277,218.04,218.0,1.98]
[1736213499814,8.95686277,218.06,218.0,1.98]
[1736213500330,8.95686277,218.05,218.0,1.98]
[1736213500518,8.95686277,218.04,218.0,1.98]
[1736213501029,8.95686277,218.04,217.97,8.95686277]
[1736213501230,8.95686277,218.04,217.98,1.98]
[1736213502424,8.95686277,218.04,217.98,10.93686277]
[1736213504028,8.95686277,218.05,217.98,10.93686277]
[1736213506034,8.95686277,218.05,217.99,8.95686277]
[1736213508107,8.95686277,218.05,217.99,10.93686277]
[1736213512631,0.57408913,218.08,218.0,8.95686277]
[1736213512810,8.95686277,218.06,218.0,8.95686277]
[1736213513011,8.95686277,218.05,217.99,10.93686277]
[1736213513235,0.57408913,218.08,217.99,10.93686277]
[1736213513411,8.95686277,218.05,217.99,10.93686277]
[1736213513610,0.57408913,218.08,218.0,8.95686277]
[1736213514036,8.95686277,218.05,217.99,10.93686277]
[1736213515937,0.57408913,218.08,217.99,10.93686277]
[1736213516145,8.95686277,218.06,217.99,10.93686277]
[1736213516435,0.57408913,218.08,218.01,8.95686277]
[1736213516631,8.95686277,218.08,218.01,8.95686277]
[1736213518116,8.95686277,218.09,218.02,8.95686277]
[1736213518316,0.57408913,218.1,218.02,8.95686277]
[1736213518525,8.95686277,218.09,218.02,8.95686277]
[1736213521045,8.95686277,218.08,218.01,8.95686277]
[1736213521744,8.95686277,218.08,218.0,8.95686277]
[1736213522439,8.95686277,218.07,218.0,8.95686277]
[1736213523841,8.95686277,218.08,218.01,8.95686277]
[1736213524349,8.95686277,218.11,218.04,8.95686277]
[1736213525048,0.57408913,218.12,218.05,8.95686277]
[1736213525353,8.95686277,218.12,218.05,8.95686277]
[1736213525646,9.5309519,218.11,218.04,8.95686277]
[1736213526551,8.95686277,218.1,218.03,8.95686277]
[1736213526839,8.95686277,218.09,218.03,8.95686277]
[1736213527015,8.95686277,218.09,218.03,10.93686277]
[1736213527219,8.95686277,218.04,218.03,1.98]
[1736213527419,8.95686277,218.05,218.0,1.5235]
[1736213527942,23.776884,218.1,218.0,1.5235]
[1736213528134,8.95686277,218.09,218.02,8.95686277]
[1736213531558,8.95686277,218.1,218.03,8.95686277]
[1736213532066,8.95686277,218.09,218.02,8.95686277]
[1736213534763,0.57408913,218.12,218.02,8.95686277]
[1736213535068,8.95686277,218.09,218.02,8.95686277]
[1736213535264,0.57408913,218.12,218.04,8.95686277]
[1736213535446,8.95686277,218.1,218.04,8.95686277]
[1736213536059,8.95686277,218.1,218.03,8.95686277]
[1736213536273,8.95686277,218.09,218.02,8.95686277]
[1736213538868,0.57408913,218.12,218.03,8.95686277]
[1736213538869,8.95686277,218.1,218.03,8.95686277]
[1736213541670,8.95686277,218.09,218.02,8.95686277]
[1736213543460,8.95686277,218.1,218.03,8.95686277]
[1736213543970,0.57408913,218.12,218.03,8.95686277]
[1736213544158,8.95686277,218.11,218.03,8.95686277]
[1736213544757,8.95686277,218.1,218.03,8.95686277]
[1736213544961,8.95686277,218.1,218.02,8.95686277]
[1736213545339,0.57408913,218.12,218.02,8.95686277]
[1736213545532,8.95686277,218.1,218.02,8.95686277]
[1736213547779,0.57408913,218.12,218.02,8.95686277]
[1736213547989,0.57408913,218.12,218.03,8.95686277]
[1736213547990,8.95686277,218.11,218.03,8.95686277]
[1736213548287,8.95686277,218.1,218.03,8.95686277]
[1736213550976,8.95686277,218.09,218.02,8.95686277]
[1736213552481,8.95686277,218.09,218.03,1.98]
[1736213553554,0.57408913,218.12,218.03,10.93686277]
[1736213553853,8.95686277,218.11,218.03,10.93686277]
[1736213554964,8.95686277,218.1,218.03,10.93686277]
[1736213555273,8.95686277,218.1,218.04,1.5794]
[1736213555467,0.57408913,218.18,218.09,15.10686277]
[1736213555657,9.5309519,218.18,218.1,10.93686277]
[1736213555857,16.10478295,218.17,218.1,10.93686277]
[1736213556059,8.95686277,218.17,218.1,10.93686277]
[1736213556872,8.95686277,218.17,218.11,1.6014]
[1736213557548,8.95686277,218.16,218.11,1.6014]
[1736213563981,8.95686277,218.19,218.12,8.95686277]
[1736213564163,0.57408913,218.22,218.12,8.95686277]
[1736213564363,8.95686277,218.19,218.12,8.95686277]
[1736213565381,8.95686277,218.21,218.14,8.95686277]
[1736213565746,8.95686277,218.2,218.13,8.95686277]
[1736213566751,24.35097313,218.25,218.13,8.95686277]
[1736213566957,8.95686277,218.2,218.13,8.95686277]
[1736213567455,8.95686277,218.19,218.12,28.95686277]
[1736213571491,8.95686277,218.2,218.13,8.95686277]
[1736213571796,8.95686277,218.21,218.14,8.95686277]
[1736213571967,20.0,218.25,218.14,8.95686277]
[1736213572167,8.95686277,218.21,218.14,8.95686277]
[1736213572789,0.57408913,218.24,218.14,8.95686277]
[1736213572991,0.57408913,218.24,218.15,8.95686277]
[1736213573294,8.95686277,218.23,218.16,15.09596277]
[1736213573463,8.95686277,218.23,218.17,1.98]
[1736213574767,8.95686277,218.22,218.17,1.98]
[1736213574968,20.0,218.25,218.18,1.6647]
[1736213575174,8.95686277,218.22,218.18,1.6647]
[1736213575381,8.95686277,218.2,218.18,1.6647]
[1736213577879,8.95686277,218.21,218.18,1.6647]
[1736213578087,20.0,218.25,218.18,1.6647]
[1736213578395,8.95686277,218.2,218.18,1.6647]
[1736213580192,8.95686277,218.19,218.13,1.5431]
[1736213580402,8.95686277,218.14,218.1,1.98]
[1736213580695,8.95686277,218.12,218.09,1.98]
[1736213580905,8.95686277,218.13,218.09,1.98]
[1736213581200,8.95686277,218.13,218.09,21.98]
[1736213581585,8.95686277,218.14,218.1,20.0]
[1736213582196,8.95686277,218.13,218.09,21.98]
[1736213582576,8.95686277,218.12,218.09,21.98]
[1736213582772,8.95686277,218.11,218.08,1.5431]
[1736213582986,0.57408913,218.19,218.08,1.5431]
[1736213582987,8.95686277,218.1,218.08,1.5431]
[1736213585925,8.95686277,218.11,218.08,1.5431]
[1736213586891,8.95686277,218.1,218.08,1.5431]
[1736213587249,8.95686277,218.1,218.06,8.6046]
[1736213587430,0.57408913,218.15,218.06,8.6046]
[1736213587639,8.95686277,218.09,218.06,8.6046]
[1736213587997,8.95686277,218.11,218.06,8.6046]
[1736213589002,0.57408913,218.15,218.07,8.95686277]
[1736213589202,8.95686277,218.14,218.07,8.95686277]
[1736213590024,8.95686277,218.13,218.06,17.56146277]
[1736213590425,8.95686277,218.12,218.06,8.6046]
[1736213590740,8.95686277,218.11,218.06,8.6046]
[1736213594056,8.95686277,218.1,218.06,8.6046]
[1736213594339,8.95686277,218.07,218.04,1.98]
[1736213595949,8.95686277,218.08,218.04,1.98]
[1736213596250,8.95686277,218.06,218.04,1.98]
[1736213596450,8.95686277,218.07,218.04,1.98]
[1736213596749,8.95686277,218.07,218.03,1.5733]
[1736213597340,8.95686277,218.05,218.0,6.5812]
[1736213597648,0.57408913,218.06,218.0,6.5812]
[1736213597649,8.95686277,218.03,218.0,6.5812]
[1736213597946,8.95686277,218.01,217.98,3.577]
[1736213598451,8.95686277,218.02,217.98,3.577]
[1736213598653,8.95686277,218.03,217.98,3.577]
[1736213602055,8.95686277,218.04,217.98,3.577]
[1736213603123,20.0,218.07,217.98,12.53386277]
[1736213603344,8.95686277,218.04,217.98,3.577]
[1736213606224,8.95686277,218.03,217.98,3.577]
[1736213607029,0.57408913,218.06,217.98,3.577]
[1736213607030,8.95686277,218.04,217.98,3.577]
[1736213613369,8.95686277,218.05,217.98,12.53386277]
[1736213613665,8.95686277,218.04,217.98,3.577]
[1736213618845,8.95686277,218.03,217.98,3.577]
[1736213620861,8.95686277,218.04,217.98,3.577]
[1736213621670,0.57408913,218.07,217.98,3.577]
[1736213621671,0.57408913,218.07,218.0,8.95686277]
[1736213621975,8.95686277,218.09,218.01,14.98616277]
[1736213625067,8.95686277,218.08,218.01,14.98616277]
[1736213627862,8.95686277,218.07,218.01,6.0293]
[1736213633591,20.0,218.1,218.01,6.0293]
[1736213633893,8.95686277,218.07,218.01,6.0293]
[1736213634065,8.69816277,218.06,218.02,1.98]
[1736213634552,0.57408913,218.12,218.02,1.98]
[1736213634757,20.0,218.1,218.02,1.98]
[1736213635082,8.95686277,218.07,218.02,1.98]
[1736213636297,8.95686277,218.06,218.02,1.98]
[1736213636498,8.95686277,218.03,218.01,6.0293]
[1736213636798,8.95686277,218.02,218.01,6.0293]
[1736213638193,8.95686277,218.02,217.99,1.98]
[1736213638667,8.95686277,218.03,217.99,1.98]
[1736213640659,8.95686277,218.04,217.99,1.98]
[1736213642597,23.776884,218.06,217.99,1.98]
[1736213642756,8.95686277,218.04,217.99,1.98]
[1736213645201,0.57408913,218.09,217.99,1.98]
[1736213645202,8.95686277,218.03,217.99,1.98]
[1736213647006,8.95686277,218.04,217.99,1.98]
[1736213647734,8.95686277,218.05,217.99,1.98]
[1736213648749,8.95686277,218.07,218.0,8.95686277]
[1736213648952,8.95686277,218.08,218.01,8.95686277]
[1736213649159,9.5309519,218.08,218.0,8.95686277]
[1736213649455,8.95686277,218.08,218.01,8.95686277]
[1736213650858,8.95686277,218.07,218.0,8.95686277]
[1736213651219,8.95686277,218.06,217.99,10.93686277]
[1736213652346,8.95686277,218.07,218.0,8.95686277]
[1736213655741,24.35097313,218.09,218.0,8.95686277]
[1736213655949,8.95686277,218.07,218.0,8.95686277]
[1736213660386,8.95686277,218.06,217.99,139.93686277]
[1736213661474,8.95686277,218.07,218.0,8.95686277]
[1736213665666,8.95686277,218.06,217.99,130.98]
[1736213665869,8.95686277,218.06,217.99,139.93686277]
[1736213667081,0.57408913,218.11,218.0,8.95686277]
[1736213667377,8.95686277,218.06,217.99,139.93686277]
[1736213671406,8.95686277,218.08,217.99,139.93686277]
[1736213672303,0.57408913,218.11,217.99,139.93686277]
[1736213672512,8.95686277,218.08,217.99,139.93686277]
[1736213673072,12.03568913,218.12,218.01,8.95686277]
[1736213673412,8.95686277,218.1,218.01,8.95686277]
[1736213673617,8.95686277,218.1,218.02,8.95686277]
[1736213674201,8.95686277,218.09,218.02,8.95686277]
[1736213674414,7.72028556,218.15,218.05,8.95686277]
[1736213674702,16.1030592,218.15,218.08,8.95686277]
[1736213675206,8.95686277,218.15,218.08,8.95686277]
[1736213675564,0.57408913,218.17,218.08,8.95686277]
[1736213676119,8.95686277,218.15,218.08,8.95686277]
[1736213676802,0.57408913,218.18,218.09,8.95686277]
[1736213676973,8.95686277,218.15,218.09,8.95686277]
[1736213679214,8.95686277,218.15,218.08,8.95686277]
[1736213680995,8.95686277,218.15,218.09,1.5195]
[1736213681486,0.57408913,218.2,218.1,8.95686277]
[1736213681692,8.95686277,218.17,218.1,8.95686277]
[1736213682911,0.57408913,218.2,218.1,137.95686277]
[1736213683123,0.57408913,218.2,218.13,8.95686277]
[1736213683124,8.95686277,218.2,218.13,8.95686277]
[1736213683321,8.95686277,218.21,218.15,1.6434]
[1736213684515,8.95686277,218.2,218.15,1.6434]
[1736213684696,8.95686277,218.18,218.15,1.6434]
[1736213686103,8.95686277,218.17,218.15,1.6434]
[1736213686319,0.57408913,218.23,218.12,6.2047]
[1736213686320,8.95686277,218.16,218.13,1.98]
[1736213686522,8.95686277,218.15,218.13,1.98]
[1736213686828,8.95686277,218.16,218.13,1.98]
[1736213687129,8.95686277,218.17,218.13,1.98]
[1736213689926,8.95686277,218.18,218.13,1.98]
[1736213693536,23.776884,218.22,218.13,1.98]
[1736213693709,8.95686277,218.2,218.13,10.93686277]
[1736213693911,8.95686277,218.2,218.13,11.62426918]
[1736213694209,8.95686277,218.21,218.14,8.95686277]
[1736213694411,8.95686277,218.21,218.16,1.544]
[1736213694920,8.95686277,218.22,218.16,1.544]
[1736213695326,8.95686277,218.21,218.16,1.544]
[1736213697300,8.95686277,218.17,218.16,1.544]
[1736213697504,8.95686277,218.17,218.13,129.0]
[1736213697706,23.776884,218.22,218.14,1.98]
[1736213697901,23.776884,218.2,218.14,1.98]
[1736213698235,23.776884,218.18,218.14,1.98]
[1736213698440,8.95686277,218.15,218.14,1.98]
[1736213699632,8.95686277,218.15,218.12,8.1847]
[1736213701624,8.95686277,218.16,218.12,6.2047]
[1736213701822,8.95686277,218.15,218.12,8.1847]
[1736213702029,8.95686277,218.16,218.12,8.1847]
[1736213702623,8.95686277,218.15,218.12,8.1847]
[1736213703342,8.95686277,218.14,218.12,1.98]
[1736213703515,8.95686277,218.14,218.1,1.5619]
[1736213703714,8.95686277,218.14,218.06,135.1719]
[1736213703715,8.95686277,218.11,218.06,6.1719]
[1736213703918,8.95686277,218.1,218.06,6.1719]
[1736213704147,8.95686277,218.1,218.07,1.98]
[1736213704637,8.95686277,218.11,218.07,1.98]
[1736213704827,20.0,218.16,218.07,10.93686277]
[1736213705027,8.95686277,218.13,218.07,1.98]
[1736213706434,8.95686277,218.14,218.07,10.93686277]
[1736213706837,8.95686277,218.13,218.07,1.98]
[1736213707026,8.95686277,218.12,218.07,1.98]
[1736213707230,8.95686277,218.13,218.07,1.98]
[1736213708144,20.0,218.16,218.07,1.98]
[1736213708347,8.95686277,218.13,218.07,1.98]
[1736213709354,8.95686277,218.1,218.07,1.98]
[1736213709516,8.95686277,218.11,218.07,1.98]
[1736213710449,8.95686277,218.08,218.0,7.7446]
[1736213710631,8.95686277,218.06,218.01,1.98]
[1736213711848,8.95686277,218.07,218.01,1.98]
[1736213712242,0.57408913,218.12,218.02,8.95686277]
[1736213712441,8.95686277,218.09,218.02,8.95686277]
[1736213713850,8.95686277,218.08,218.02,8.95686277]
[1736213714049,8.95686277,218.08,218.01,10.93686277]
[1736213715541,20.0,218.14,218.05,8.95686277]
[1736213715722,8.95686277,218.12,218.05,8.95686277]
[1736213716046,8.95686277,218.11,218.03,8.95686277]
[1736213716849,8.95686277,218.11,218.04,8.95686277]
[1736213718344,8.95686277,218.12,218.05,8.95686277]
[1736213718940,8.95686277,218.14,218.08,6.036]
[1736213719137,8.95686277,218.15,218.08,16.97286277]
[1736213720230,8.95686277,218.14,218.08,8.016]
[1736213720644,24.35097313,218.17,218.08,8.016]
[1736213720827,8.95686277,218.15,218.08,16.97286277]
[1736213721027,8.95686277,218.16,218.09,8.95686277]
[1736213722145,0.57408913,218.2,218.11,8.95686277]
[1736213722347,8.95686277,218.2,218.13,8.95686277]
[1736213722550,8.95686277,218.19,218.12,8.95686277]
[1736213722733,43.776884,218.21,218.12,8.95686277]
[1736213722934,8.95686277,218.19,218.12,8.95686277]
[1736213723571,8.95686277,218.19,218.12,137.95686277]
[1736213723949,8.95686277,218.19,218.13,8.95686277]
[1736213725672,8.95686277,218.21,218.14,10.58846277]
[1736213725984,8.95686277,218.21,218.16,6.1695]
[1736213726535,8.95686277,218.2,218.16,6.1695]
[1736213726759,8.95686277,218.19,218.16,6.1695]
[1736213727658,8.95686277,218.2,218.16,6.1695]
[1736213727958,7.14619643,218.28,218.15,1.98]
[1736213727959,8.95686277,218.18,218.15,1.98]
[1736213728671,8.95686277,218.17,218.14,3.6116]
[1736213729036,8.95686277,218.18,218.14,3.6116]
[1736213731065,8.95686277,218.19,218.14,3.6116]
[1736213731770,8.95686277,218.18,218.14,3.6116]
[1736213733151,8.95686277,218.17,218.14,3.6116]
[1736213733470,8.95686277,218.18,218.14,3.6116]
[1736213734965,8.95686277,218.2,218.14,3.6116]
[1736213737169,0.57408913,218.28,218.14,141.56846277]
[1736213737348,8.95686277,218.21,218.14,141.56846277]
[1736213738298,20.0,218.26,218.17,8.95686277]
[1736213738462,8.95686277,218.24,218.17,8.95686277]
[1736213739277,8.95686277,218.23,218.16,137.95686277]
[1736213742289,8.95686277,218.23,218.17,8.95686277]
[1736213743604,8.95686277,218.22,218.16,137.95686277]
[1736213743902,8.95686277,218.22,218.16,129.0]
[1736213744404,8.95686277,218.22,218.16,137.95686277]
[1736213746800,20.0,218.26,218.16,137.95686277]
[1736213747100,8.95686277,218.24,218.17,15.51366277]
[1736213747275,8.95686277,218.24,218.17,16.20097011]
[1736213748406,8.95686277,218.24,218.17,145.20097011]
[1736213748604,8.95686277,218.24,218.17,144.51366277]
[1736213749204,20.0,218.26,218.17,144.51366277]
[1736213749708,8.95686277,218.24,218.17,144.51366277]
[1736213750604,11.453,218.29,218.17,144.51366277]
[1736213750784,8.95686277,218.27,218.21,1.5793]
[1736213751105,8.95686277,218.26,218.22,1.98]
[1736213752704,8.95686277,218.25,218.22,1.98]
[1736213755306,8.95686277,218.26,218.22,1.98]
[1736213755509,8.95686277,218.25,218.22,1.98]
[1736213758715,8.95686277,218.26,218.22,1.98]
[1736213760594,8.95686277,218.23,218.21,1.5793]
[1736213760799,8.95686277,218.23,218.22,1.98]
[1736213761319,8.95686277,218.24,218.22,1.98]
[1736213762224,8.95686277,218.25,218.22,1.98]
[1736213763026,8.95686277,218.24,218.22,1.98]
[1736213768245,8.95686277,218.23,218.17,6.5568]
[1736213768447,8.95686277,218.19,218.18,1.98]
[1736213769535,8.95686277,218.2,218.18,1.98]
[1736213769918,0.57408913,218.26,218.18,1.98]
[1736213769919,8.95686277,218.21,218.18,1.98]
[1736213771048,8.95686277,218.2,218.18,1.98]
[1736213771852,8.95686277,218.21,218.18,1.98]
[1736213772653,8.95686277,218.24,218.18,1.98]
[1736213774353,8.95686277,218.24,218.17,8.95686277]
[1736213774553,8.95686277,218.2,218.18,1.98]
[1736213774853,8.95686277,218.19,218.18,1.98]
[1736213775026,7.50786277,218.19,218.18,1.98]
[1736213775350,8.95686277,218.22,218.18,1.98]
[1736213775956,8.95686277,218.22,218.19,23.776884]
[1736213776123,8.95686277,218.23,218.19,23.776884]
[1736213777758,8.95686277,218.22,218.19,23.776884]
[1736213777929,8.95686277,218.21,218.19,23.776884]
[1736213778131,8.95686277,218.2,218.18,1.98]
[1736213778347,8.95686277,218.19,218.16,130.6367]
[1736213778525,8.95686277,218.19,218.18,1.98]
[1736213779249,8.95686277,218.19,218.17,1.98]
[1736213779435,8.95686277,218.18,218.17,1.98]
[1736213779637,8.95686277,218.18,218.16,129.0]
[1736213779841,8.95686277,218.18,218.17,1.98]
[1736213782449,8.95686277,218.2,218.17,1.98]
[1736213784052,8.95686277,218.21,218.17,1.98]
[1736213784242,20.0,218.24,218.17,1.98]
[1736213784446,8.95686277,218.22,218.17,1.98]
[1736213785457,8.95686277,218.2,218.17,1.98]
[1736213785759,8.95686277,218.19,218.17,1.98]
[1736213786938,8.95686277,218.21,218.17,1.98]
[1736213787135,8.95686277,218.21,218.18,1.98]
[1736213787362,8.95686277,218.2,218.18,1.98]
[1736213790968,8.95686277,218.19,218.13,129.0]
[1736213791141,8.95686277,218.19,218.18,1.98]
[1736213791766,20.0,218.15,218.11,1.512]
[1736213791949,8.95686277,218.12,218.11,1.98]
[1736213792258,8.95686277,218.12,218.06,1.6622]
[1736213792467,8.95686277,218.12,218.1,1.98]
[1736213792661,8.95686277,218.11,218.1,1.98]
[1736213792869,8.95686277,218.11,218.06,1.6622]
[1736213793162,8.95686277,218.09,218.07,1.98]
[1736213794670,8.95686277,218.1,218.07,1.98]
[1736213795571,8.95686277,218.11,218.07,1.98]
[1736213803194,8.95686277,218.13,218.07,1.98]
[1736213803357,8.95686277,218.13,218.07,10.93686277]
[1736213803563,8.95686277,218.14,218.07,10.93686277]
[1736213804415,8.95686277,218.15,218.07,1.98]
[1736213804572,8.95686277,218.15,218.09,8.95686277]
[1736213805405,0.57408913,218.18,218.1,8.95686277]
[1736213805572,8.95686277,218.16,218.1,8.95686277]
[1736213806975,8.95686277,218.15,218.08,8.95686277]
[1736213807975,8.95686277,218.14,218.07,139.93686277]
[1736213808405,8.95686277,218.1,218.08,1.98]
[1736213809202,23.776884,218.15,218.08,1.98]
[1736213809380,8.95686277,218.14,218.08,1.98]
[1736213810002,8.95686277,218.15,218.08,10.93686277]
[1736213812383,8.95686277,218.14,218.08,10.93686277]
[1736213813397,8.95686277,218.14,218.08,1.98]
[1736213813812,8.95686277,218.12,218.08,1.98]
[1736213814110,8.95686277,218.09,218.08,1.98]
[1736213814671,0.57408913,218.16,218.08,1.98]
[1736213814672,8.95686277,218.1,218.08,1.98]
[1736213816013,8.95686277,218.11,218.08,1.98]
[1736213816509,28.95686277,218.12,218.08,1.98]
[1736213817194,8.95686277,218.11,218.08,1.98]
[1736213821528,8.95686277,218.12,218.08,1.98]
[1736213822029,8.95686277,218.13,218.08,1.98]
[1736213822727,20.0,218.14,218.08,1.98]
[1736213822910,8.95686277,218.11,218.08,1.98]
[1736213824443,8.95686277,218.1,218.08,1.98]
[1736213824655,8.95686277,218.09,218.08,1.98]
[1736213825844,8.95686277,218.09,218.06,1.6622]
[1736213826158,8.95686277,218.08,218.06,3.6422]
[1736213827034,8.95686277,218.09,218.06,3.6422]
[1736213828254,8.95686277,218.08,218.06,1.98]
[1736213828838,8.95686277,218.08,218.02,6.5422]
[1736213829144,8.95686277,218.08,218.01,1.5117]
[1736213829145,8.95686277,218.04,218.01,1.5117]
[1736213829820,8.95686277,218.03,218.01,1.5117]
[1736213830242,8.95686277,218.02,217.98,1.98]
[1736213830442,20.0,218.07,217.98,1.98]
[1736213830639,24.35097313,218.06,217.98,1.98]
[1736213831026,8.95686277,218.02,217.98,1.98]
[1736213834155,8.95686277,218.05,217.98,10.93686277]
[1736213834340,8.95686277,218.06,217.99,8.95686277]
[1736213834645,8.95686277,218.05,217.98,10.93686277]
[1736213834855,8.95686277,218.03,217.98,1.98]
[1736213839271,8.95686277,218.04,217.98,1.98]
[1736213840837,8.95686277,218.02,217.98,1.98]
[1736213841044,8.95686277,218.03,217.98,1.98]
[1736213841341,8.95686277,218.04,217.98,1.98]
[1736213842369,0.57408913,218.06,217.98,1.98]
[1736213842567,8.95686277,218.05,217.98,10.93686277]
[1736213844854,8.95686277,218.04,217.98,1.98]
[1736213847150,8.95686277,218.04,217.98,130.98]
[1736213848868,20.0,218.07,217.98,130.98]
[1736213849078,8.95686277,218.05,217.98,139.93686277]
[1736213850387,8.95686277,218.06,218.0,8.95686277]
[1736213851283,8.95686277,218.08,218.01,8.95686277]
[1736213851577,8.95686277,218.08,218.02,1.5686]
[1736213851875,8.95686277,218.07,218.02,1.5686]
[1736213853480,8.95686277,218.07,218.02,3.5486]
[1736213856575,28.95686277,218.06,218.02,3.5486]
[1736213861704,8.95686277,218.06,218.02,3.5486]
[1736213861866,0.57408913,218.15,218.05,8.95686277]
[1736213862070,8.95686277,218.12,218.05,8.95686277]
[1736213862612,8.95686277,218.12,218.06,8.95686277]
[1736213864914,8.95686277,218.11,218.04,137.95686277]
[1736213865092,8.95686277,218.08,218.02,148.05526277]
[1736213865795,8.95686277,218.09,218.02,148.05526277]
[1736213867115,8.95686277,218.1,218.03,8.95686277]
[1736213867283,8.95686277,218.11,218.04,8.95686277]
[1736213867483,8.95686277,218.1,218.03,9.64461034]
[1736213867715,8.95686277,218.1,218.03,8.95686277]
[1736213870750,8.95686277,218.11,218.03,9.64460493]
[1736213871051,8.95686277,218.11,218.04,8.95686277]
[1736213871339,8.95686277,218.11,218.04,137.95686277]
[1736213879059,8.95686277,218.1,218.04,129.0]
[1736213881965,8.95686277,218.11,218.04,137.95686277]
[1736213883955,8.95686277,218.1,218.04,129.0]
[1736213885338,8.95686277,218.11,218.04,129.0]
[1736213885851,8.95686277,218.11,218.05,1.98]
[1736213887162,0.57408913,218.19,218.06,9.64458015]
[1736213887476,8.95686277,218.14,218.07,10.48596277]
[1736213889958,0.57408913,218.21,218.1,8.95686277]
[1736213890156,8.95686277,218.19,218.13,8.95686277]
[1736213890477,8.95686277,218.19,218.12,139.93686277]
[1736213890690,8.95686277,218.17,218.12,130.98]
[1736213890984,8.95686277,218.18,218.12,130.98]
[1736213891182,20.0,218.21,218.12,130.98]
[1736213891183,8.95686277,218.16,218.12,130.98]
[1736213891574,8.95686277,218.17,218.12,130.98]
[1736213892878,8.95686277,218.18,218.12,130.98]
[1736213894064,8.95686277,218.19,218.12,137.95686277]
[1736213894264,8.95686277,218.19,218.13,1.98]
[1736213895082,8.95686277,218.19,218.13,130.98]
[1736213895698,8.95686277,218.2,218.14,1.6502]
[1736213897172,0.57408913,218.24,218.14,10.60706277]
[1736213897360,8.95686277,218.21,218.14,10.60706277]
[1736213898672,8.95686277,218.21,218.14,1.6502]
[1736213898873,8.95686277,218.18,218.14,1.6502]
[1736213899083,8.95686277,218.16,218.14,1.6502]
[1736213899583,8.95686277,218.18,218.14,1.6502]
[1736213901598,8.95686277,218.19,218.14,1.6502]